Workbook

Sheet fig 7-4
A1: ON-GRADE INLET CALCULATIONS | W1: v12a-13
A2: County | B2: Todd | F2: Item No. | H2: 3-8401 | J2: Road No. | L2: KY 181 | P2: Road Name
B3: Speed | C3: Lane | D3: W | E3: n | F3: I | G3: Gu.Dp. | H3: Paved Shld. | J3: State Project No. | O3: FD04 110 0181 011-013
B4: Limit | C4: Width | D4: (ft) | F4: (iph) | G4: (in) | H4: Width | J4: Federal Project No.
B5: 35 | C5: 12 | D5: 2 | E5: 0.013 | F5: 4 | G5: 0 | H5: 0 | J5: Emars No. | O5: 8486701D
A7: Sag | B7: Station | C7: Inlet | D7: L | E7: C | F7: Area | G7: Slope (ft/ft) | J7: LTI | K7: Qt | L7: Qt2 | M7: Spread (ft) | P7: Qs | Q7: di | R7: Eo | S7: Se | T7: E | U7: Flow (cfs) | W7: Allow
A8: Location | C8: Type | D8: (ft) | F8: (ac) | G8: Sl | H8: Sx | I8: Sw | J8: (ft) | K8: (cfs) | M8: T | N8: Tn | O8: Ts | P8: (cfs) | Q8: (ft) | S8: (ft/ft) | U8: Qi | V8: Qby | W8: T (ft)
B9: 10+25 | C9: AB | D9: 10 | E9: 0.7 | F9: 0.0429 | G9: 0.000249 | H9: 0.02 | I9: =H9+$G$5/12/$D$5 -> 0.02 | J9: =0.6*K9^0.42*G9^0.3*(1/($E$5*S9))^0.6 -> 1.309441424 | K9: 0.12012 | L9: =IF(M9>$D$5,P9/(1-R9),P9) -> 0.1197457102 | M9: 6.012770237 | N9: =M9*SQRT(K9/L9) -> 6.022159979 | O9: =IF(M9>$D$5,M9-$D$5,M9) -> 4.012770237 | P9: =IF(M9>$D$5,0.56*H9^(5/3)*G9^0.5*O9^(8/3)/$E$5,0.56*I9^(5/3)*G9^0.5*O9^(8/3)/$E$5) -> 0.04072981687 | Q9: =M9*H9+$G$5/12 -> 0.1202554047 | R9: =IF(M9>$D$5,1/(1+I9/H9/((1+I9/H9/(M9/$D$5-1))^(8/3)-1)),1) -> 0.6598640837 | S9: =H9+(($G$5+VLOOKUP(C9,Data!$A$2:$B$21,2))/12/$D$5)*R9 -> 0.07498867364 | T9: =IF(J9>D9,1-(1-(D9/J9))^1.8,1) -> 1 | U9: =T9*K9 -> 0.12012 | V9: =K9-U9 -> 0 | W9: 8
B10: 10+70 | C10: BB | D10: 10 | E10: 0.9 | F10: 0.48033 | G10: 0.053256 | H10: 0.02 | I10: =H10+$G$5/12/$D$5 -> 0.02 | J10: =0.6*K10^0.42*G10^0.3*(1/($E$5*S10))^0.6 -> 20.03616286 | K10: 1.729188 | L10: =IF(M10>$D$5,P10/(1-R10),P10) -> 1.723687899 | M10: 5.977125641 | N10: =M10*SQRT(K10/L10) -> 5.986654226 | O10: =IF(M10>$D$5,M10-$D$5,M10) -> 3.977125641 | P10: =IF(M10>$D$5,0.56*H10^(5/3)*G10^0.5*O10^(8/3)/$E$5,0.56*I10^(5/3)*G10^0.5*O10^(8/3)/$E$5) -> 0.5816527273 | Q10: =M10*H10+$G$5/12 -> 0.1195425128 | R10: 0.6625533383 | S10: =H10+(($G$5+VLOOKUP(C10,Data!$A$2:$B$21,2))/12/$D$5)*R10 -> 0.07521277819 | T10: =IF(J10>D10,1-(1-(D10/J10))^1.8,1) -> 0.7118917698 | U10: =T10*K10 -> 1.230994706 | V10: =K10-U10 -> 0.4981932944 | W10: 8
B11: 13+00 | C11: AB | D11: 10 | E11: 0.9 | F11: 0.2804 | G11: 0.018074 | H11: 0.02 | I11: =H11+$G$5/12/$D$5 -> 0.02 | J11: =0.6*K11^0.42*G11^0.3*(1/($E$5*S11))^0.6 -> 14.33130722 | K11: 1.507633294 | L11: =IF(M11>$D$5,P11/(1-R11),P11) -> 1.505333614 | M11: 6.9571138 | N11: =M11*SQRT(K11/L11) -> 6.962425924 | O11: =IF(M11>$D$5,M11-$D$5,M11) -> 4.9571138 | P11: =IF(M11>$D$5,0.56*H11^(5/3)*G11^0.5*O11^(8/3)/$E$5,0.56*I11^(5/3)*G11^0.5*O11^(8/3)/$E$5) -> 0.6096756417 | Q11: =M11*H11+$G$5/12 -> 0.139142276 | R11: 0.5949896845 | S11: =H11+(($G$5+VLOOKUP(C11,Data!$A$2:$B$21,2))/12/$D$5)*R11 -> 0.06958247371 | T11: =IF(J11>D11,1-(1-(D11/J11))^1.8,1) -> 0.8839621348 | U11: =T11*K11 -> 1.332690745 | V11: =K11-U11 -> 0.174942549 | W11: 8
A12: sag | B12: 19+00 | C12: AB | D12: 10 | E12: 0.9 | F12: 0.1333 | G12: 0 | H12: 0.02 | I12: 0.1033333333 | K12: 0.654822549 | M12: 3.797880178 | Q12: 0.2426242702 | R12: 0.969013636 | S12: 0.1033333333 | U12: 0.654822549 | V12: 0 | W12: 8 | X12: Wd
B13: 21+00 | C13: AS | D13: 10 | E13: 0.9 | F13: 0.2027 | G13: 0.009606 | H13: 0.02 | I13: =H13+$G$5/12/$D$5 -> 0.02 | J13: =0.6*K13^0.42*G13^0.3*(1/($E$5*S13))^0.6 -> 8.354448187 | K13: 0.732666259 | L13: =IF(M13>$D$5,P13/(1-R13),P13) -> 0.7303287567 | M13: 5.971826285 | N13: =M13*SQRT(K13/L13) -> 5.981375414 | O13: =IF(M13>$D$5,M13-$D$5,M13) -> 3.971826285 | P13: =IF(M13>$D$5,0.56*H13^(5/3)*G13^0.5*O13^(8/3)/$E$5,0.56*I13^(5/3)*G13^0.5*O13^(8/3)/$E$5) -> 0.2461538391 | Q13: =M13*H13+$G$5/12 -> 0.1194365257 | R13: 0.662954749 | S13: =H13+(($G$5+VLOOKUP(C13,Data!$A$2:$B$21,2))/12/$D$5)*R13 -> 0.07524622909 | T13: =IF(J13>D13,1-(1-(D13/J13))^1.8,1) -> 1 | U13: =T13*K13 -> 0.732666259 | V13: =K13-U13 -> 0 | W13: 8
B14: 22+30 | C14: AS | D14: 10 | E14: 0.9 | F14: 0.2527 | G14: 0.014888 | H14: 0.02 | I14: =H14+$G$5/12/$D$5 -> 0.02 | J14: =0.6*K14^0.42*G14^0.3*(1/($E$5*S14))^0.6 -> 10.43174301 | K14: 0.90972 | L14: =IF(M14>$D$5,P14/(1-R14),P14) -> 0.906807783 | M14: 5.965899002 | N14: =M14*SQRT(K14/L14) -> 5.975471077 | O14: =IF(M14>$D$5,M14-$D$5,M14) -> 3.965899002 | P14: =IF(M14>$D$5,0.56*H14^(5/3)*G14^0.5*O14^(8/3)/$E$5,0.56*I14^(5/3)*G14^0.5*O14^(8/3)/$E$5) -> 0.3052276789 | Q14: =M14*H14+$G$5/12 -> 0.11931798 | R14: 0.6634042136 | S14: =H14+(($G$5+VLOOKUP(C14,Data!$A$2:$B$21,2))/12/$D$5)*R14 -> 0.07528368446 | T14: =IF(J14>D14,1-(1-(D14/J14))^1.8,1) -> 0.9967613562 | U14: =T14*K14 -> 0.906773741 | V14: =K14-U14 -> 0.002946259027 | W14: 8
B15: 24+00 | C15: AS | D15: 10 | E15: 0.9 | F15: 0.1694 | G15: 0.006653 | H15: 0.02 | I15: =H15+$G$5/12/$D$5 -> 0.02 | J15: =0.6*K15^0.42*G15^0.3*(1/($E$5*S15))^0.6 -> 6.927850602 | K15: 0.60984 | L15: =IF(M15>$D$5,P15/(1-R15),P15) -> 0.6078947794 | M15: 5.972200358 | N15: =M15*SQRT(K15/L15) -> 5.981748037 | O15: =IF(M15>$D$5,M15-$D$5,M15) -> 3.972200358 | P15: =IF(M15>$D$5,0.56*H15^(5/3)*G15^0.5*O15^(8/3)/$E$5,0.56*I15^(5/3)*G15^0.5*O15^(8/3)/$E$5) -> 0.2049052814 | Q15: =M15*H15+$G$5/12 -> 0.1194440072 | R15: 0.6629264006 | S15: =H15+(($G$5+VLOOKUP(C15,Data!$A$2:$B$21,2))/12/$D$5)*R15 -> 0.07524386671 | T15: =IF(J15>D15,1-(1-(D15/J15))^1.8,1) -> 1 | U15: =T15*K15 -> 0.60984 | V15: =K15-U15 -> 0 | W15: 8

Sheet Instructions
A2: This spreadsheet calculates the spread of multiple series of on-grade grated or curb box inlets. Inlets are entered by increasing in station.
A3: A "sag" point may be located in order to collect flow from either direction.
A4: Grated inlets do not currently provide a blocking factor, as is the case in the previous "Gratin" program in KTDID.
A6: Blue shaded cells are entered as user supplied values on sheet "fig-4". All other cells are calculated values from formulas or from the macro.
A7: Enter all user input values and press “CTRL+r” to execute the macro. Spreads that exceed the allowable will be shaded red.
A8: Change inlet spacing, recalculate the flow area to an inlet and/or change the opening length for curb box inlets and rerun as needed to achieve an allowable spread.
A9: A blank line terminates the calculations for an inlet series . Multiple inlet series may be entered after each blank line between the series.
A10: Heading information may not be reentered for additional series.
A11: Two consequtive blank lines will terminate all calculations.
A12: One sag inlet per series may be entered but is not required.
A14: Inlet spacing is based on a design storm having an intensity of 4 iph.
A15: Curb opening lengths and types are checked by the macro. Valid CBI lengths are 5, 10, 15 and 20 feet. The CMBBI is only available in a 10 foot length.
A16: Precast curb inlets may be available only with a 10 foot opening.
A17: CBI, type A has a 2" depression while type B curb inlets have a 4" depression. KYTC policy has been to consider only 2" as being effective.
A19: The macro regenerates the cell formulas and cell formats each time the macro is executed.
A21: CURB BOX INLET TYPES: | H21: DROP BOX INLET TYPES:
A22: AB = Curb Box Inlet type A with Barrier curb | H22: 4.12 = 4" x 12" bridge deck drain
A23: AI = Curb Box Inlet type A with Island curb | H23: 12 = Drop Box Inlet, type 12
A24: AS = Curb Box Inlet type A with Standard curb | H24: 13.1 = Drop Box Inlet, type 13 with curved cast vanes
A25: BB = Curb Box Inlet type B with Barrier curb | H25: 13.2 = Drop Box Inlet, type 13 with 45° tilted structural steel vanes
A26: BI = Curb Box Inlet type B with Island curb | H26: 16.1 = Drop Box Inlet, type 16 with curved cast vanes and slotted pipe
A27: BS = Curb Box Inlet type B with Standard curb | H27: 16.2 = Drop Box Inlet, type 16 with 45° tilted structural steel vanes and slotted pipe
A28: M = Concrete Median Barrier Box Inlet
A29: U = USer Inlet | H29: Drop Box Inlets are not recommended in sags.
A30: F1 = Flume Inlet Type 1 (assumed L = 14' with 2:1 emb. slope) | H30: Slotted pipe is not analyzed as part of DBI type 16.
A31: F2 = Flume Inlet Type 2 (assumed L = 11' with 2:1 emb. slope) | H31: Slotted pipe shall be analyzed as a curb box inlet of equal length.
A32: One user curb inlet may be added or edited in the appropriate table. | H32: Up to 4 user grate inlets may be added or edited in the appropriate tables.
A34: Column W indicates the type of flow analysis at a sag
A35: Wd = flow based on weir equation for a depressed inlet
A36: Wn = flow based on weir equation for a non-depressed inlet
A37: Or = flow based on orfice equation
A38: Tr = flow based on calculation of Transition flow between the weir and orifice equations
A40: The spreadsheet results seem to check reasonably with the Visual Urban program for on-grade situations.
A41: The results seem to check reasonably with the Visual Urban program for sag situations as long as the flows do not exced the weir flow limits.
A42: If the weir flow limits are exceeded the Visual Urban continues to use the weir flow equation while the spreadsheet calculates a transition flow or orifice flow.

Sheet Data
A1: Inlet | B1: a (in) | C1: ho (in) | D1: theta(°) | E1: ht (in) | F1: hv (in) | J1: Splash-over Velocity | M1: Curved Vane | R1: 45° Tilt Vane | W1: P-1-7/8-4
A2: AB | B2: 2 | C2: 5 | D2: 53.384 | E2: 9 | F2: =C2*SIN(D2*PI()/180) -> 4.013254732 | J2: L = | K2: =I18 -> 2 | M2: Table Vo | O2: Curve Fit | Q2: Calc. | R2: Table Vo | T2: Curve Fit | V2: Calc. | W2: Table Vo | Y2: Curve Fit | AA2: Calc.
A3: AI | B3: 2 | C3: 5.5 | D3: 34 | E3: 4 | F3: 3.075560969 | J3: Vo = | K3: =($Z$4*K2^3)+($Z$5*K2^2)+($Z$6*K2)+$Z$7 -> 4.69 | M3: L | N3: Vane | O3: Excel coeff. | Q3: Vo | R3: L | S3: Vane | T3: Excel coeff. | V3: Vo | W3: L | X3: Vane | Y3: Excel coeff. | AA3: Vo
A4: AS | B4: 2 | C4: 4.875 | D4: 41.841 | E4: 6 | F4: 3.251945536 | M4: 1 | N4: 3.84 | O4: c3 = | P4: =INDEX(LINEST($N$4:$N$7,$M$4:$M$7^{1,2,3}),1) -> 0.04 | Q4: =($P$4*M4^3)+($P$5*M4^2)+($P$6*M4)+$P$7 -> 3.84 | R4: 1 | S4: 3.32 | T4: c3 = | U4: =INDEX(LINEST($S$4:$S$7,$R$4:$R$7^{1,2,3}),1) -> 0.03 | V4: =($U$4*R4^3)+($U$5*R4^2)+($U$6*R4)+$U$7 -> 3.32 | W4: 1 | X4: 2.96 | Y4: c3 = | Z4: =INDEX(LINEST($X$4:$X$7,$W$4:$W$7^{1,2,3}),1) -> 0.005 | AA4: =($Z$4*W4^3)+($Z$5*W4^2)+($Z$6*W4)+$Z$7 -> 2.96
A5: BB | B5: 2 | C5: 5.25 | D5: 56.662 | E5: 9 | F5: 4.386076022 | H5: (formatted cells for macro use) | M5: 2 | N5: 5.92 | O5: c2 = | P5: =INDEX(LINEST($N$4:$N$7,$M$4:$M$7^{1,2,3}),2) -> -0.46 | Q5: =($P$4*M5^3)+($P$5*M5^2)+($P$6*M5)+$P$7 -> 5.92 | R5: 2 | S5: 5.06 | T5: c2 = | U5: =INDEX(LINEST($S$4:$S$7,$R$4:$R$7^{1,2,3}),2) -> -0.365 | V5: =($U$4*R5^3)+($U$5*R5^2)+($U$6*R5)+$U$7 -> 5.06 | W5: 2 | X5: 4.69 | Y5: c2 = | Z5: =INDEX(LINEST($X$4:$X$7,$W$4:$W$7^{1,2,3}),2) -> -0.16 | AA5: =($Z$4*W5^3)+($Z$5*W5^2)+($Z$6*W5)+$Z$7 -> 4.69
A6: BI | B6: 2 | C6: 5.25 | D6: 52.8917 | E6: 4 | F6: 4.186856826 | I6: (do not move) | M6: 3 | N6: 7.56 | O6: c1 = | P6: =INDEX(LINEST($N$4:$N$7,$M$4:$M$7^{1,2,3}),3) -> 3.18 | Q6: =($P$4*M6^3)+($P$5*M6^2)+($P$6*M6)+$P$7 -> 7.56 | R6: 3 | S6: 6.43 | T6: c1 = | U6: =INDEX(LINEST($S$4:$S$7,$R$4:$R$7^{1,2,3}),3) -> 2.625 | V6: 6.43 | W6: 3 | X6: 6.16 | Y6: c1 = | Z6: =INDEX(LINEST($X$4:$X$7,$W$4:$W$7^{1,2,3}),3) -> 2.175 | AA6: 6.16
A7: BS | B7: 2 | C7: 5.25 | D7: 62.668 | E7: 6 | F7: 4.663894913 | J7: 9 | K7: 9 | M7: 4 | N7: 9 | O7: b = | P7: =INDEX(LINEST($N$4:$N$7,$M$4:$M$7^{1,2,3}),4) -> 1.08 | Q7: =($P$4*M7^3)+($P$5*M7^2)+($P$6*M7)+$P$7 -> 9 | R7: 4 | S7: 7.61 | T7: b = | U7: =INDEX(LINEST($S$4:$S$7,$R$4:$R$7^{1,2,3}),4) -> 1.03 | V7: 7.61 | W7: 4 | X7: 7.4 | Y7: b = | Z7: =INDEX(LINEST($X$4:$X$7,$W$4:$W$7^{1,2,3}),4) -> 0.94 | AA7: 7.4
A8: F1 | B8: 2 | C8: 7.5 | D8: 63.43 | E8: 6 | F8: 7.5
A9: F2 | B9: 2 | C9: 7.5 | D9: 63.43 | E9: 6 | F9: 7.5 | H9: Grate | R9: Other Grates (not used) | W9: P-1-1/8
A10: M | B10: 2.88 | C10: 4 | D10: 90 | E10: 32 | F10: 4 | H10: Type | I10: L | J10: Vo | K10: W | L10: Ag | M10: P (ft); T>=W | R10: Type | S10: L | T10: Vo | U10: W | W10: Table Vo | Y10: Curve Fit | AA10: Calc.
A11: US | B11: 0 | C11: 4 | D11: 90 | E11: 6 | F11: 4 | I11: (ft) | J11: (fps) | K11: (ft) | L11: (sq.in) | M11: 0 | N11: 0.5 | R11: 1 | S11: 3.291666667 | T11: 8 | U11: 2.270833333 | W11: L | X11: Vane | Y11: Excel coeff. | AA11: Vo
A12: 4.12 | B12: 0.5 | C12: 0 | D12: 0 | E12: 6 | F12: 0 | H12: 4.12 | I12: 0.9583333333 | J12: 1.430094898 | K12: =(3.75-3/4-0.25)/12 -> 0.2291666667 | L12: =(12-2*0.25)*(3.75-0.25) -> 40.25 | M12: =I12+2*K12 -> 1.416666667 | N12: =I12+K12 -> 1.1875 | O12: 4x12 deck drain | R12: 2 | S12: 4.291666667 | T12: 8 | U12: 2.270833333 | W12: 1 | X12: 4.518 | Y12: c3 = | Z12: =INDEX(LINEST($X$12:$X$15,$W$12:$W$15^{1,2,3}),1) -> 0.045 | AA12: =($Z$12*W12^3)+($Z$13*W12^2)+($Z$14*W12)+$Z$15 -> 4.518
A13: 12 | B13: 0.5 | C13: 0 | D13: 0 | E13: 6 | F13: 0 | H13: 12 | I13: =3*(12+11+7/8)/12 -> 5.96875 | J13: 9.285087738 | K13: =14/12 -> 1.166666667 | L13: =121*3 -> 363 | M13: =I13+2*K13 -> 8.302083333 | N13: =I13+K13 -> 7.135416667 | O13: 3 grates | R13: 3 | S13: 3.010416667 | T13: 8 | U13: 2.3125 | W13: 2 | X13: 6.462 | Y13: c2 = | Z13: =INDEX(LINEST($X$12:$X$15,$W$12:$W$15^{1,2,3}),2) -> -0.507 | AA13: =($Z$12*W13^3)+($Z$13*W13^2)+($Z$14*W13)+$Z$15 -> 6.462
A14: 13.1 | B14: 0.5 | C14: 0 | D14: 0 | E14: 6 | F14: 0 | H14: 13.1 | I14: =2+5.75/12 -> 2.479166667 | J14: 6.75 | K14: =(12+5.75)/12 -> 1.479166667 | L14: 413.5 | M14: =I14+2*K14 -> 5.4375 | N14: =I14+K14 -> 3.958333333 | O14: curved vane | R14: 4 | S14: 3.90625 | T14: 7.8 | U14: 2.3125 | W14: 3 | X14: 7.932 | Y14: c1 = | Z14: =INDEX(LINEST($X$12:$X$15,$W$12:$W$15^{1,2,3}),3) -> 3.15 | AA14: 7.932
A15: 13.2 | B15: 0.5 | C15: 0 | D15: 0 | E15: 6 | F15: 0 | H15: 13.2 | I15: =2+4.25/12 -> 2.354166667 | J15: 5.58 | K15: 1.5 | L15: 426.6 | M15: =I15+2*K15 -> 5.354166667 | N15: =I15+K15 -> 3.854166667 | O15: 45° tilted vane | R15: 5 | S15: 3.291666667 | T15: 10.58 | U15: 2.958333333 | W15: 4 | X15: 9.198 | Y15: b = | Z15: =INDEX(LINEST($X$12:$X$15,$W$12:$W$15^{1,2,3}),4) -> 1.83 | AA15: 9.198
A16: 16.1 | B16: 0.5 | C16: 0 | D16: 0 | E16: 6 | F16: 0 | H16: 16.1 | I16: =2+5.75/12 -> 2.479166667 | J16: 6.75 | K16: =(12+5.75)/12 -> 1.479166667 | L16: 413.5 | M16: 5.4375 | N16: 3.958333333 | O16: curved vane | R16: 6 | S16: 3.010416667 | T16: 6.6 | U16: 3.145833333
A17: 16.2 | B17: 0.5 | C17: 0 | D17: 0 | E17: 6 | F17: 0 | H17: 16.2 | I17: =2+4.25/12 -> 2.354166667 | J17: 5.58 | K17: 1.5 | L17: 426.6 | M17: 5.354166667 | N17: 3.854166667 | O17: 45° tilted vane | R17: 7 | S17: 3.010416667 | T17: 6.6 | U17: 2.3125
A18: 20 | B18: 0.5 | C18: 0 | D18: 0 | E18: 6 | F18: 0 | G18: user | H18: 20 | I18: 2 | J18: 4.69 | K18: 2 | L18: 576 | M18: 6 | N18: 4 | O18: Visual Urban Vane
A19: 20.18 | B19: 0.5 | C19: 0 | D19: 0 | E19: 6 | F19: 0 | G19: grate | H19: 20.18 | I19: 2 | J19: 6.462 | K19: 2 | L19: 576 | M19: =I19+2*K19 -> 6 | N19: =I19+K19 -> 4 | O19: P-1-1/8, Vo | V19: Sample Blocking Calc for Grated Inlets
A20: 20.19 | B20: 0.5 | C20: 0 | D20: 0 | E20: 6 | F20: 0 | G20: entry | H20: 20.19 | I20: 0.628 | J20: 2.75 | K20: 1.469 | L20: 0.922 | M20: 4.193 | N20: 3.565 | O20: R-3921-V1 | Q20: (curved vane) | V20: type 3 | Y20: 0.5 | Z20: WP
A21: 20.2 | B21: 0.5 | C21: 0 | D21: 0 | E21: 6 | F21: 0 | G21: lines | H21: 20.2 | I21: 1.021 | J21: 3 | K21: 1.812 | L21: 1.85 | M21: 5.67 | N21: 3.854 | O21: R-3922 | Q21: (tilt vane) | V21: gross | W21: bar | X21: net | Y21: blk | Z21: 0 | AA21: 0.5
U22: W | V22: =(1+5/12+5/8/12)*2 -> 2.9375 | W22: =20*3/8/12 -> 0.625 | X22: =V22-W22 -> 2.3125 | Y22: =V22/2+10*((3/8)/12) -> 1.78125 | Z22: =2*V22+2*V23 -> 12.58333333 | AA22: =2*V22+V23 -> 9.229166667
A23: NOTES: | H23: 3 grates assumed for type 12 unit; Vo assumed | U23: L | V23: =3+4/12+1/4/12 -> 3.354166667 | W23: =10*3/8/12 -> 0.3125 | X23: =V23-W23 -> 3.041666667 | Y23: =V23/2+5*((3/8)/12) -> 1.833333333
A24: 20 | B24: User defined inlet | H24: Grated lengths and widths do not include frame. | U24: Area | V24: =V23*V22 -> 9.852864583 | X24: =X23*X22 -> 7.033854167 | Y24: =Y23*Y22 -> 3.265625
A25: CBI = Curb Box Inlet type | H25: Grated inlet types other than 13 or 16 use splash-over velocities based on P-1-7/8-4 curve. | U25: % open = | X25: =X24/$V$24*100 -> 71.3889256 | Y25: =(1-Y24/V24)*100 -> 66.85608563
A26: a = inlet depression (in)
A27: ho = minimum throat opening (in)
A28: theta = throat inclination angle as determined from the Standard Drawings (°)
A29: ht = curb height from gutter flow line to top of curb (no depression) (in)
A30: hv = "Minimum vertical" is the corresponding vertical depth at the minimum throat opening, ho. (includes depression) (in)
A32: User inlet data may be entered above from cell A18 to cell A21.
A34: CMBBI inlet type has a 2.88" depression as measured from a 4% shoulder cross slope and a 4" drop from the bottom of the CMBBI over a 28" gutter width.
A35: Cell B8 containing depression, "a" would need to be changed for CMBBI to reflect the cross slope if modeled as a user defined inlet. Calculate a = 28*((4/28) - Sx)
A36: Island curbs are always in weir flow. (Max. weir flow depth overtops the curb.)
L38: TEST AREA
A39: Sx | B39: Sw | C39: Sl | D39: n | F39: ht | O39: TRANSITION
A40: 0.02 | B40: =A40+F44/C44 -> 0.1033333333 | C40: 0.001 | D40: 0.015 | F40: =VLOOKUP(D44,A2:F11,5)/12 -> 0.5 | O40: weir | Q40: orifice | T40: Interpolated
E41: Inlet Geometry | K41: WEIR | O41: (max) | Q41: (min) | T41: Values | V41: ORIFICE
A42: Q | B42: L | C42: W | D42: Inlet | E42: a | G42: ho | I42: theta | K42: d1 | L42: d2 | M42: d | N42: di | O42: hv | P42: Ql | Q42: 1.4 hv | R42: Qu | S42: dom | T42: d | U42: di | V42: do | W42: d | X42: di
A43: (cfs) | B43: (ft) | C43: (ft) | E43: (in) | F43: (ft) | G43: (in) | H43: (ft) | I43: deg | J43: sine | K43: (ft) | L43: (ft) | M43: (ft) | N43: (ft) | O43: (ft) | P43: (cfs) | Q43: (ft) | R43: (cfs) | S43: (ft) | T43: (ft) | U43: (ft) | V43: (ft) | W43: (ft) | X43: (ft)
A44: 5.47 | B44: 5 | C44: 2 | D44: as | E44: =VLOOKUP(D44,A2:B11,2) -> 2 | F44: =E44/12 -> 0.1666666667 | G44: =VLOOKUP(D44,A2:C11,3) -> 4.875 | H44: =G44/12 -> 0.40625 | I44: =VLOOKUP(D44,A2:D11,4) -> 41.841 | J44: =SIN(I44*PI()/180) -> 0.667065751 | K44: =(A44/(2.3*(B44+1.8*C44)))^(2/3) -> 0.4244638342 | L44: =(A44/(3*B44))^(2/3) -> 0.5104235592 | M44: =IF(B44>12,L44,IF(F44=0,L44,K44)) -> 0.4244638342 | N44: =M44+F44 -> 0.5911305008 | O44: =H44*J44 -> 0.2709954613 | P44: =IF(B44>12,3*B44*O44^1.5,IF(F44=0,3*B44*O44^1.5,2.3*(B44+1.8*C44)*O44^1.5)) -> 2.790418312 | Q44: =O44*1.4 -> 0.3793936459 | R44: =0.667*H44*B44*(64.4*S44)^0.5 -> 5.369506956 | S44: =0.9*O44 -> 0.2438959152 | T44: =U44-F44 -> 0.2169506664 | U44: =(A44-P44)/(R44-P44)*0.4*O44+O44 -> 0.383617333 | V44: =(A44/(0.667*H44*B44))^2/64.4 -> 0.253110616 | W44: =X44-F44 -> 0.22194168 | X44: =V44+O44/2 -> 0.3886083467
A46: 5.7 | B46: 9 | Q46: Final
Q47: di | R47: d | T47: T
B48: Calculation Steps | Q48: (ft) | R48: type | S48: (ft) | T48: (ft)
B49: 1. The appropriate computed "d" value based on the two weir flow equation options is selected. | Q49: =IF(A44<=P44,N44,IF(A44>R44,X44,U44)) -> 0.3886083467 | R49: =IF(A44<=P44,IF(F44=0,"Wn","Wd"),IF(A44>R44,"Orif.","Tran")) -> Orif. | S49: =IF(A44<=P44,IF(F44=0,L44,K44),IF(A44>R44,W44,T44)) -> 0.22194168 | T49: =IF(S49<F44,S49/B40,S49/A40) -> 11.097084
B50: 2. Maximum weir and minimum orifice flow limits are computed and compared to the design flow.
B51: a. If the design flow < maximum weir flow, then the weir flow results are selected.
B52: b. If the design flow > minimum orifice flow, then the orifice flow results are selected.
B53: c. Otherwise transition depth is computed from hv, between the maximum weir and minimum orifice flows.
B54: 3. Depth of flow at inlet is calculated (di = d + a).
B55: 4. Spread is calculated (T = d / Sx). If d < a, T = d / Sw.
